bitfinex/quotes_BTCUSD_20251114
["timestamp","ask_amount","ask_price","bid_price","bid_amount"]
[1763113025451,0.04341874,96940.0,96938.0,0.20631533]
[1763113025651,4.551e-05,96943.0,96942.0,0.02716]
[1763113025858,0.04446425,96943.0,96942.0,0.02716]
[1763113026067,0.01031565,96940.0,96910.0,0.2]
[1763113026274,0.24977023,96922.0,96921.0,0.01149]
[1763113026473,0.04341874,96922.0,96921.0,0.01149]
[1763113027188,4.551e-05,96943.0,96921.0,0.21784149]
[1763113027403,4.551e-05,96943.0,96942.0,0.23346892]
[1763113028328,4.551e-05,96943.0,96942.0,0.01149]
[1763113028743,0.04341874,96942.0,96923.0,0.02437]
[1763113028972,0.04341874,96942.0,96939.0,0.20631419]
[1763113029584,0.04341874,96942.0,96940.0,0.20631215]
[1763113029902,0.04341874,96942.0,96941.0,0.01166]
[1763113030104,4.551e-05,96943.0,96942.0,0.20630892]
[1763113031721,0.04446425,96943.0,96942.0,0.20630892]
[1763113032440,0.00104551,96943.0,96942.0,0.20630892]
[1763113033593,4.551e-05,96943.0,96942.0,0.20634892]
[1763113033945,0.00104551,96943.0,96942.0,0.20634892]
[1763113034973,0.00015727,96943.0,96942.0,0.22173892]
[1763113035180,0.00015727,96943.0,96942.0,0.34553892]
[1763113035378,0.00015727,96943.0,96942.0,0.33014892]
[1763113035579,0.00015727,96943.0,96942.0,0.20634892]
[1763113036616,0.04341874,96955.0,96943.0,0.02437]
[1763113036881,0.20630679,96943.0,96942.0,4e-05]
[1763113037085,0.57272553,96943.0,96942.0,4e-05]
[1763113037291,0.57272553,96943.0,96881.0,0.1238]
[1763113037292,0.24979153,96912.0,96910.0,0.02]
[1763113037733,0.57279153,96912.0,96910.0,0.02]
[1763113037886,0.57279153,96912.0,96900.0,0.02]
[1763113038532,0.57279153,96912.0,96911.0,0.00069731]
[1763113038693,0.67134398,96912.0,96911.0,0.00069731]
[1763113039981,0.67334398,96912.0,96911.0,0.00069731]
[1763113040201,0.67134398,96912.0,96911.0,0.00069731]
[1763113040617,0.67134398,96912.0,96911.0,0.00369731]
[1763113043890,0.57279153,96912.0,96911.0,0.00369731]
[1763113044088,0.52937279,96912.0,96911.0,0.00369731]
[1763113044290,0.20637279,96912.0,96911.0,0.00369731]
[1763113044721,0.24979153,96912.0,96911.0,0.00369731]
[1763113047119,0.67040714,96912.0,96911.0,0.00369731]
[1763113049501,0.66837414,96912.0,96911.0,0.00369731]
[1763113049943,0.74908859,96912.0,96911.0,0.00369731]
[1763113050084,0.24987887,96871.0,96870.0,0.0004]
[1763113050291,0.24987887,96871.0,96870.0,0.00085563]
[1763113050608,0.24987887,96871.0,96870.0,0.02085563]
[1763113050609,0.57287887,96871.0,96870.0,0.02085563]
[1763113051212,0.67654825,96871.0,96870.0,0.00085563]
[1763113051632,0.57287887,96871.0,96870.0,0.00085563]
[1763113051817,0.57487887,96871.0,96870.0,0.00085563]
[1763113052217,0.24996203,96832.0,96831.0,0.01162]
[1763113052416,0.04341874,96832.0,96831.0,0.01206966]
[1763113052793,0.04341874,96832.0,96831.0,0.03397234]
[1763113053453,0.04341874,96832.0,96831.0,0.21861508]
[1763113055597,0.04341874,96832.0,96831.0,0.21865508]
[1763113055799,0.20647207,96866.0,96831.0,0.01210966]
[1763113056043,0.20647207,96866.0,96855.0,0.20649287]
[1763113056044,0.323,96858.0,96855.0,0.20649287]
[1763113056368,0.21678711,96870.0,96864.0,0.01162]
[1763113056510,0.04341874,96867.0,96864.0,0.21809425]
[1763113056708,0.20647292,96865.0,96864.0,0.01162]
[1763113057132,0.24989166,96865.0,96864.0,0.01162]
[1763113057349,0.20647292,96865.0,96864.0,0.03343096]
[1763113057523,0.24989166,96865.0,96864.0,0.03388062]
[1763113057728,0.20647292,96865.0,96864.0,0.03388062]
[1763113057922,0.24989166,96865.0,96864.0,0.03388062]
[1763113058131,0.04341874,96865.0,96864.0,0.03388062]
[1763113058472,0.323,96871.0,96870.0,0.20646226]
[1763113058677,0.01890811,96871.0,96870.0,0.20646226]
[1763113058879,0.01890811,96871.0,96869.0,0.2064642]
[1763113058880,0.20643579,96883.0,96879.0,0.01544]
[1763113059081,0.55813053,96900.0,96884.0,0.01162]
[1763113059316,0.01890979,96890.0,96886.0,0.20642783]
[1763113059519,0.01890979,96889.0,96887.0,0.20642553]
[1763113059664,0.54781062,96910.0,96884.0,0.01162]
[1763113059665,0.01891579,96888.0,96884.0,0.01162]
[1763113059868,0.01031885,96910.0,96886.0,0.20642817]
[1763113059869,0.01891579,96887.0,96886.0,0.20642817]
[1763113060089,0.20640662,96897.0,96889.0,0.20642043]
[1763113060090,0.04341874,96896.0,96889.0,0.20642043]
[1763113060259,0.01891668,96895.0,96893.0,0.20641208]
[1763113060464,0.01891668,96895.0,96890.0,0.02]
[1763113060465,0.20641654,96892.0,96886.0,0.02339]
[1763113060687,0.001,96889.0,96888.0,0.20642391]
[1763113060894,0.20641512,96893.0,96888.0,0.20642391]
[1763113060895,0.20640826,96896.0,96893.0,0.20641314]
[1763113061105,0.04341874,96903.0,96898.0,0.2064021]
[1763113061314,0.04341874,96903.0,96892.0,0.20641539]
[1763113061315,0.04341874,96903.0,96901.0,0.20639598]
[1763113061572,0.04341874,96904.0,96902.0,0.01162]
[1763113061772,0.24981069,96903.0,96902.0,0.01162]
[1763113062336,0.24981069,96903.0,96902.0,0.01167102]
[1763113062956,0.57281069,96903.0,96902.0,5.102e-05]
[1763113063771,0.59178539,96903.0,96902.0,5.102e-05]
[1763113063967,0.59378539,96903.0,96902.0,5.102e-05]
[1763113065717,0.69745477,96903.0,96902.0,5.102e-05]
[1763113066191,0.71939146,96903.0,96902.0,5.102e-05]
[1763113066731,0.61572208,96903.0,96902.0,5.102e-05]
[1763113067084,0.61572208,96903.0,96902.0,0.00029208]
[1763113068316,0.24985756,96881.0,96880.0,0.02]
[1763113068520,0.26883226,96881.0,96880.0,0.02004551]
[1763113068973,0.36644787,96881.0,96880.0,0.02004551]
[1763113069173,0.06239344,96881.0,96880.0,0.02004551]
[1763113069407,0.16000905,96881.0,96880.0,0.02004551]
[1763113071021,0.36644787,96881.0,96880.0,0.02004551]
[1763113071676,0.36644787,96881.0,96880.0,4.551e-05]
[1763113071677,0.68944787,96881.0,96880.0,4.551e-05]
[1763113072109,0.68944787,96881.0,96880.0,0.02004551]
[1763113072314,0.71142897,96881.0,96880.0,0.02004551]
[1763113072640,0.68944787,96881.0,96880.0,0.02004551]
[1763113074049,0.06239344,96881.0,96880.0,4.551e-05]
[1763113074290,0.26883226,96881.0,96880.0,4.551e-05]
[1763113074707,0.26983226,96881.0,96880.0,4.551e-05]
[1763113075478,0.26883226,96881.0,96880.0,4.551e-05]
[1763113077343,0.06239344,96881.0,96880.0,0.20648646]
[1763113077678,0.06239344,96881.0,96880.0,0.22713511]
[1763113078101,0.06239344,96881.0,96880.0,0.22772453]
[1763113078230,0.06339344,96881.0,96880.0,0.22772453]
[1763113078862,0.26983226,96881.0,96880.0,0.00063493]
[1763113079064,0.06239344,96881.0,96880.0,0.00063493]
[1763113079360,0.26983226,96881.0,96880.0,0.00063493]
[1763113079908,0.06339344,96881.0,96880.0,0.00063493]
[1763113080513,0.06339344,96881.0,96880.0,0.20707588]
[1763113080712,0.06239344,96881.0,96880.0,0.20707588]
[1763113081099,0.06339344,96881.0,96880.0,0.20707588]
[1763113081303,0.06239344,96881.0,96880.0,0.00063493]
[1763113081503,0.59183226,96881.0,96880.0,0.00063493]
[1763113081720,0.68944787,96881.0,96880.0,0.00063493]
[1763113081921,0.69044787,96881.0,96880.0,0.00063493]
[1763113082075,0.68944787,96881.0,96880.0,0.00063493]
[1763113082285,0.68944787,96881.0,96880.0,0.02063493]
[1763113082459,0.69044787,96881.0,96880.0,0.02063493]
[1763113083212,0.38639344,96881.0,96880.0,0.00063493]
[1763113083413,0.59283226,96881.0,96880.0,0.00063493]
[1763113083788,0.06239344,96881.0,96880.0,0.2277849]
[1763113084231,0.06339344,96881.0,96880.0,0.2277849]
[1763113084433,0.06239344,96881.0,96880.0,0.2277849]
[1763113084888,0.04441874,96881.0,96880.0,0.02134395]
[1763113085131,0.24985756,96881.0,96880.0,0.04134395]
[1763113085348,0.24985756,96881.0,96880.0,0.00063493]
[1763113086636,0.04341874,96881.0,96880.0,0.00063493]
[1763113086874,0.24985756,96881.0,96880.0,0.00063493]
[1763113087080,0.04441874,96881.0,96880.0,0.00063493]
[1763113087285,0.04441874,96881.0,96880.0,0.20707588]
[1763113087720,0.04441874,96881.0,96880.0,0.00063493]
[1763113087721,0.25085756,96881.0,96880.0,0.00063493]
[1763113087926,0.25085756,96881.0,96880.0,0.02063493]
[1763113088168,0.25085756,96881.0,96880.0,0.00063493]
[1763113088356,0.34747317,96881.0,96880.0,0.02063493]
[1763113089185,0.34747317,96881.0,96880.0,0.00063493]
[1763113089407,0.34747317,96881.0,96880.0,0.02063493]
[1763113090215,0.34847317,96881.0,96880.0,0.02067493]
[1763113090720,0.34747317,96881.0,96880.0,0.02067493]
[1763113091111,0.34847317,96881.0,96880.0,0.02067493]
[1763113092287,0.34847317,96881.0,96880.0,0.00067493]
[1763113092288,0.77514255,96881.0,96880.0,0.00067493]
[1763113092487,0.24990019,96861.0,96860.0,0.02]
[1763113092624,0.25003682,96861.0,96860.0,0.02]
[1763113092825,0.67065243,96861.0,96860.0,0.02]
[1763113093830,0.24994496,96840.0,96835.0,0.02359]
[1763113094050,0.04341874,96832.0,96830.0,0.0004]
[1763113094289,0.04341874,96835.0,96830.0,0.0004]
[1763113094481,0.20654127,96834.0,96830.0,0.0004]
[1763113094679,0.04341874,96832.0,96830.0,0.0004]
[1763113095508,0.24996107,96833.0,96830.0,0.0004]
[1763113095914,0.04341874,96834.0,96830.0,0.0004]
[1763113096089,0.04341874,96837.0,96830.0,0.0004]
[1763113096601,0.04341874,96837.0,96832.0,0.20654329]
[1763113096809,0.04341874,96837.0,96833.0,0.02306133]
[1763113097021,0.04341874,96846.0,96841.0,0.01608]
[1763113097222,0.04341874,96846.0,96844.0,0.20651615]
[1763113097427,0.04341874,96847.0,96845.0,0.20651512]
[1763113097623,0.323,96854.0,96850.0,0.20650477]
[1763113097802,0.323,96854.0,96851.0,0.01238]
[1763113098003,0.323,96854.0,96851.0,0.21888176]
[1763113098305,0.04341874,96853.0,96851.0,0.21888176]
[1763113098488,0.09775224,96861.0,96852.0,0.20649899]
[1763113098489,0.04341874,96857.0,96852.0,0.20649899]
[1763113098696,0.04341874,96857.0,96855.0,0.20649378]
[1763113098896,0.04341874,96857.0,96851.0,0.01238]
[1763113098897,0.04341874,96860.0,96858.0,0.20648747]
[1763113099209,0.04341874,96856.0,96851.0,0.01238]
[1763113099547,0.09761561,96859.0,96851.0,0.01238]
[1763113099548,0.04341874,96852.0,96851.0,0.01238]
[1763113099752,0.09761561,96859.0,96851.0,0.01238]
[1763113099753,0.24991569,96854.0,96851.0,0.21888239]
[1763113100111,0.04441874,96854.0,96851.0,0.21888239]
[1763113100270,0.04341874,96855.0,96853.0,0.20649793]
[1763113100475,0.04341874,96855.0,96853.0,0.20649769]
[1763113100676,0.04355537,96861.0,96860.0,0.02]
[1763113102180,0.04341874,96855.0,96851.0,4e-05]
[1763113102387,0.24991938,96852.0,96851.0,4e-05]
[1763113105605,0.04341874,96852.0,96851.0,4e-05]
[1763113106033,0.04341874,96852.0,96851.0,0.00081729]
[1763113106212,0.04341874,96852.0,96851.0,0.02514685]
[1763113106406,0.04441874,96852.0,96851.0,0.02514685]
[1763113106626,0.04341874,96852.0,96851.0,0.02514685]
[1763113107122,0.04341874,96852.0,96851.0,0.00081729]
[1763113108426,0.2445,96863.0,96860.0,0.20648358]
[1763113108652,0.04341874,96862.0,96860.0,0.22256358]
[1763113109608,0.03660077,96907.0,96860.0,0.22256358]
[1763113109609,0.323,96879.0,96860.0,0.20648358]
[1763113109782,0.20644308,96880.0,96860.0,0.20648358]
[1763113109986,0.20643765,96882.0,96860.0,0.20648358]
[1763113110328,0.323,96884.0,96860.0,0.20648358]
[1763113110540,0.00113663,96861.0,96860.0,0.20648358]
[1763113110838,0.00013663,96861.0,96860.0,0.23045358]
[1763113111261,0.00013663,96861.0,96860.0,0.20648358]
[1763113112035,0.12486082,96912.0,96870.0,0.4]
[1763113112248,0.04114992,96911.0,96881.0,0.01133]
[1763113112372,0.20637918,96909.0,96881.0,0.01133]
[1763113112573,0.09766271,96912.0,96910.0,0.02]
[1763113112777,0.52937492,96911.0,96910.0,0.02]
[1763113112974,0.52937492,96911.0,96891.0,0.01133]
[1763113112975,0.323,96911.0,96891.0,0.01133]
[1763113113196,0.04341874,96896.0,96891.0,0.01133]
[1763113113936,0.001,96911.0,96901.0,0.20639421]
[1763113114140,0.001,96911.0,96892.0,0.02397]
[1763113114141,0.20639393,96903.0,96892.0,0.02397]
[1763113114360,0.20639621,96901.0,96897.0,0.20640419]
[1763113114563,0.20639858,96900.0,96897.0,0.20640419]
[1763113114846,0.09761561,96909.0,96903.0,0.20639174]
[1763113115046,4.71e-05,96912.0,96908.0,0.01634]
[1763113115047,0.323,96910.0,96908.0,0.01634]
[1763113115244,0.04341874,96909.0,96908.0,0.01634]
[1763113115607,0.04341874,96907.0,96898.0,0.23037214]
[1763113115978,4.71e-05,96912.0,96898.0,0.02397]
[1763113116181,4.71e-05,96912.0,96890.0,0.21032098]
[1763113116182,0.001,96911.0,96899.0,0.02397]
[1763113116385,0.323,96909.0,96900.0,0.02]
[1763113116592,0.323,96905.0,96890.0,0.02]
[1763113116766,0.323,96905.0,96881.0,0.01133]
[1763113116767,0.04341874,96893.0,96881.0,0.01133]
[1763113116968,0.20641147,96894.0,96881.0,0.01133]
[1763113116969,0.20639037,96904.0,96900.0,0.20639771]
[1763113117227,0.01031885,96910.0,96900.0,0.20639771]
[1763113117228,0.04341874,96903.0,96901.0,0.2177253]
[1763113117428,0.24979852,96909.0,96905.0,0.20638601]
[1763113118792,0.04341874,96909.0,96906.0,0.20638513]
[1763113118993,0.24979821,96909.0,96906.0,0.20638513]
[1763113119195,0.24979821,96909.0,96907.0,0.02359387]
[1763113119356,0.04341874,96909.0,96907.0,0.02359387]
[1763113119562,0.04341874,96909.0,96908.0,0.20638131]
[1763113120198,0.04341874,96909.0,96907.0,0.22997593]
[1763113120404,0.04441874,96909.0,96907.0,0.22997593]
[1763113120602,0.20642094,96912.0,96911.0,0.20637492]
[1763113120603,4.71e-05,96912.0,96911.0,0.20637492]
[1763113121960,4.71e-05,96912.0,96911.0,0.52937492]
[1763113122749,4.71e-05,96912.0,96911.0,0.65329492]
[1763113123186,4.71e-05,96912.0,96911.0,0.52937492]
[1763113123448,4.71e-05,96912.0,96911.0,0.35488879]
[1763113123642,4.71e-05,96912.0,96911.0,0.23096879]
[1763113124044,4.71e-05,96912.0,96911.0,0.22996879]
[1763113124482,4.71e-05,96912.0,96911.0,0.23096879]
[1763113125602,4.71e-05,96912.0,96911.0,0.22996879]
[1763113126056,4.71e-05,96912.0,96911.0,0.23096879]
[1763113127219,4.71e-05,96912.0,96911.0,0.55396879]
[1763113130835,4.71e-05,96912.0,96911.0,1.16703079]
[1763113131221,4.71e-05,96912.0,96911.0,1.1888823]
[1763113131634,4.71e-05,96912.0,96911.0,0.69893779]
[1763113131853,4.71e-05,96912.0,96911.0,0.80367579]
[1763113132056,4.71e-05,96912.0,96911.0,0.67979579]
[1763113132262,4.71e-05,96912.0,96911.0,0.78765779]
[1763113132660,4.71e-05,96912.0,96911.0,0.78965779]
[1763113132834,4.71e-05,96912.0,96911.0,0.78765779]
[1763113133246,4.71e-05,96912.0,96911.0,0.78965779]
[1763113133736,4.71e-05,96912.0,96911.0,0.66577779]
[1763113134040,4.71e-05,96912.0,96911.0,0.78961779]
[1763113134560,4.71e-05,96912.0,96911.0,0.89821779]
[1763113134815,4.71e-05,96912.0,96911.0,0.78961779]
[1763113135405,4.71e-05,96912.0,96911.0,0.66577779]
[1763113135620,4.71e-05,96912.0,96911.0,0.78961779]
[1763113138182,4.71e-05,96912.0,96911.0,0.66577779]
[1763113138382,4.71e-05,96912.0,96911.0,0.78961779]
[1763113138802,4.71e-05,96912.0,96911.0,0.66577779]
[1763113138976,4.71e-05,96912.0,96911.0,0.78961779]
[1763113140697,4.71e-05,96912.0,96911.0,0.66577779]
[1763113140901,4.71e-05,96912.0,96911.0,0.78961779]
[1763113141110,4.71e-05,96912.0,96911.0,0.55496879]
[1763113141307,4.71e-05,96912.0,96911.0,0.35580879]
[1763113141762,4.71e-05,96912.0,96911.0,0.23196879]
[1763113142171,4.71e-05,96912.0,96911.0,0.22996879]
[1763113142646,4.71e-05,96912.0,96911.0,0.001]
[1763113142851,0.24979366,96911.0,96910.0,0.5]
[1763113145457,0.04441874,96911.0,96910.0,0.5]
[1763113145680,0.04341874,96911.0,96910.0,0.5]
[1763113146076,0.04441874,96911.0,96910.0,0.5]
[1763113146445,0.001,96911.0,96910.0,0.5]
[1763113147041,0.001,96911.0,96910.0,0.52]
[1763113147541,4.71e-05,96912.0,96911.0,0.20637492]
[1763113147742,4.71e-05,96912.0,96911.0,0.23041492]
[1763113147942,4.71e-05,96912.0,96911.0,0.20637492]
[1763113148142,4.71e-05,96912.0,96911.0,0.52937492]
[1763113148360,4.71e-05,96912.0,96911.0,0.74545392]
[1763113149576,4.71e-05,96912.0,96911.0,0.74645392]
[1763113151793,0.0105114,96980.0,96942.0,0.20630892]
[1763113152148,0.34073585,96943.0,96942.0,0.75568179]
[1763113152477,0.34073585,96943.0,96942.0,0.73999179]
[1763113154654,0.34073585,96943.0,96942.0,1.06299179]
[1763113155037,0.34073585,96943.0,96942.0,1.60400679]
[1763113155244,0.34073585,96943.0,96942.0,1.60300679]
[1763113155577,0.0002,96980.0,96979.0,0.20623021]
[1763113155776,0.01949124,96980.0,96979.0,0.23349021]
[1763113155991,0.01949124,96980.0,96979.0,0.21780021]
[1763113156347,0.00033682,96980.0,96979.0,0.21780021]
[1763113156679,0.0002,97000.0,96999.0,0.20618769]
[1763113156892,0.00065597,97000.0,96999.0,0.21775769]
[1763113157098,0.0002,97020.0,96999.0,0.21775769]
[1763113157099,0.0002,97020.0,97019.0,0.20614518]
[1763113157309,0.0002,97040.0,97035.0,0.20611119]
[1763113157310,0.02206684,97037.0,97035.0,0.20611119]
[1763113157485,0.09761561,97036.0,97028.0,0.01157]
[1763113157713,0.22817962,97035.0,97030.0,0.02]
[1763113157918,0.02206684,97034.0,97028.0,0.01157]
[1763113158139,0.00013676,97037.0,97031.0,0.20611857]
[1763113158352,0.00013676,97037.0,97028.0,0.01157]
[1763113158552,0.2061232,97030.0,97028.0,0.01157]
[1763113158793,0.20612327,97030.0,97028.0,0.01157]
[1763113159007,0.04341874,97018.0,97015.0,0.01157]
[1763113159752,0.04341874,97019.0,97015.0,0.01157]
[1763113159951,0.09761561,97029.0,97015.0,0.01157]
[1763113159952,0.001,97030.0,97025.0,0.20613244]
[1763113160174,0.0002,97040.0,97035.0,0.20611086]
[1763113160175,0.323,97039.0,97035.0,0.20611086]
[1763113160393,0.38355856,97050.0,97036.0,0.22179767]
[1763113160596,0.20609122,97045.0,97036.0,0.22179767]
[1763113160909,0.34500465,97044.0,97036.0,0.22179767]
[1763113161068,0.02200465,97043.0,97037.0,0.20610694]
[1763113161269,0.20609788,97042.0,97036.0,0.01569]
[1763113161484,0.323,97046.0,97041.0,0.20609788]
[1763113161664,0.02199279,97045.0,97044.0,0.20609208]
[1763113161870,0.323,97046.0,97044.0,0.20609049]
[1763113162107,0.0002,97050.0,97046.0,0.20608577]
[1763113162283,0.0002,97050.0,97048.0,0.20608156]
[1763113162943,0.0002,97050.0,97045.0,0.03416]
[1763113163320,0.0002,97050.0,97048.0,0.20608169]
[1763113163723,0.0002,97050.0,97049.0,0.02259]
[1763113164497,0.0012,97050.0,97049.0,0.02259]
[1763113164693,0.0002,97050.0,97049.0,0.02259]
[1763113165003,0.0012,97050.0,97049.0,0.02259]
[1763113165464,0.0002,97050.0,97049.0,0.02259]
[1763113168008,0.0002,97050.0,97045.0,0.01157]
[1763113168207,0.0002,97050.0,97039.0,0.01157]
[1763113168688,0.0002,97050.0,97040.0,0.02]
[1763113168908,0.0002,97050.0,97039.0,0.21767149]
[1763113168909,0.20608891,97046.0,97039.0,0.01157]
[1763113169105,0.0002,97050.0,97039.0,0.01157]
[1763113169309,0.0002,97050.0,97048.0,0.20608163]
[1763113169547,0.0002,97050.0,97040.0,0.02]
[1763113169757,0.0002,97050.0,97049.0,0.01569]
[1763113172626,0.20628146,97050.0,97040.0,0.02]
[1763113172800,0.20628146,97050.0,97020.0,0.60858002]
[1763113172801,0.20609781,97042.0,97028.0,0.02375]
[1763113173003,0.20611081,97036.0,97028.0,0.22987579]
[1763113173213,0.323,97049.0,97028.0,0.20612579]
[1763113173538,0.323,97049.0,97024.0,0.01157]
[1763113173539,0.20612345,97030.0,97024.0,0.01157]
[1763113173692,0.3730546,97040.0,97030.0,0.02]
[1763113173899,0.20612315,97030.0,97025.0,0.20613213]
[1763113174121,0.3730546,97040.0,97024.0,0.01170676]
[1763113174122,0.5791573,97040.0,97024.0,0.01170676]
[1763113174323,0.20612931,97027.0,97024.0,0.01170676]
[1763113174525,0.20613244,97025.0,97024.0,0.01170676]
[1763113174929,0.20612815,97028.0,97024.0,0.21784026]
[1763113175125,0.20613128,97026.0,97024.0,0.01170676]
[1763113175406,0.3730546,97040.0,97024.0,0.01170676]
[1763113175407,0.20611696,97033.0,97024.0,0.01170676]
[1763113175538,0.20611539,97034.0,97029.0,0.20612348]
[1763113175741,0.20610653,97038.0,97030.0,0.20612133]
[1763113175965,0.20610653,97038.0,97034.0,0.20611178]
[1763113175966,0.20610616,97038.0,97034.0,0.20611178]
[1763113176309,0.24952214,97039.0,97036.0,0.20610815]
[1763113176519,0.24952214,97039.0,97025.0,0.02375]
[1763113176520,0.24952214,97039.0,97035.0,0.20611078]
[1763113176930,0.20610745,97037.0,97033.0,0.20611491]
[1763113177264,0.20611176,97035.0,97032.0,0.2061163]
[1763113177618,0.04341874,97038.0,97024.0,0.01170676]
[1763113177831,0.09761561,97043.0,97024.0,0.01170676]
[1763113178023,0.04341874,97042.0,97033.0,0.20611529]
[1763113178246,0.24951719,97041.0,97040.0,0.02]
[1763113179435,0.25051719,97041.0,97040.0,0.02]
[1763113180249,0.57351719,97041.0,97040.0,0.02]
[1763113181712,0.57253418,97033.0,97032.0,4e-05]
[1763113183384,0.57253418,97033.0,97024.0,0.00013676]
[1763113183385,0.57255118,97025.0,97024.0,0.00013676]
[1763113184901,0.57455118,97025.0,97024.0,0.00013676]
[1763113185440,0.25155118,97025.0,97024.0,0.00013676]
[1763113186496,0.20618344,97001.0,97000.0,0.02004]
[1763113186614,0.30159905,97001.0,97000.0,0.02004]
[1763113186847,0.34501779,97001.0,97000.0,0.02004]
[1763113187046,0.34501779,97001.0,97000.0,4e-05]
[1763113188264,0.66801779,97001.0,97000.0,4e-05]
[1763113188888,0.34501779,97001.0,97000.0,4e-05]
[1763113189111,0.66901779,97001.0,97000.0,4e-05]
[1763113189351,0.66901779,97001.0,97000.0,0.02004]
[1763113190935,0.66901779,97001.0,97000.0,4e-05]
[1763113191517,0.66901779,97001.0,97000.0,0.02004]
[1763113191894,0.66901779,97001.0,97000.0,4e-05]
[1763113192499,0.46503435,97001.0,97000.0,4e-05]
[1763113194556,0.001,97001.0,97000.0,4e-05]
[1763113195998,0.20718344,97001.0,97000.0,4e-05]
[1763113196562,0.20618166,97002.0,97000.0,4e-05]
[1763113197067,0.09761561,97001.0,97000.0,0.00104]
[1763113197188,0.09761561,97001.0,97000.0,4e-05]
[1763113197607,0.30379905,97001.0,97000.0,4e-05]
[1763113199540,0.30379905,97001.0,97000.0,0.02004]
[1763113199736,0.34721779,97001.0,97000.0,0.02004]
[1763113200683,0.04341874,97023.0,97020.0,0.02]
[1763113200825,0.36641874,97021.0,97009.0,0.02818]
[1763113201027,0.20616431,97010.0,97009.0,0.02818]
[1763113201249,0.01030609,97030.0,97010.0,0.02431]
[1763113201456,0.20612859,97027.0,97022.0,0.23431881]
[1763113201710,0.20627329,97023.0,97022.0,0.02818]
[1763113201906,0.04355535,97023.0,97022.0,0.02818]
[1763113202311,0.04355535,97023.0,97022.0,0.23431881]
[1763113202487,0.09761561,97024.0,97022.0,0.23431881]
[1763113202488,0.08575222,97024.0,97022.0,0.23431881]
[1763113202893,0.09761561,97040.0,97031.0,0.01613]
[1763113203218,0.01909872,97039.0,97033.0,0.01613]
[1763113203427,0.20611756,97032.0,97031.0,0.01205]
[1763113203634,0.20611418,97034.0,97031.0,0.01205]
[1763113203818,0.20611628,97033.0,97031.0,0.01205]
[1763113203967,0.20611702,97033.0,97031.0,0.01205]
[1763113204410,0.20611418,97034.0,97031.0,0.01205]
[1763113204411,0.20611418,97034.0,97031.0,0.21816933]
[1763113204820,0.20610907,97036.0,97031.0,0.21816933]
[1763113205042,0.20610347,97039.0,97035.0,0.20610964]
[1763113205244,0.04341874,97039.0,97035.0,0.20610964]
[1763113205449,0.04341874,97039.0,97032.0,0.23042708]
[1763113205450,0.20611544,97033.0,97031.0,0.01205]
[1763113205667,0.20613467,97024.0,97022.0,0.03636]
[1763113206070,0.20613238,97026.0,97022.0,0.03636]
[1763113206243,0.20612718,97028.0,97024.0,0.20613336]
[1763113206430,0.20612718,97028.0,97023.0,0.2061355]
[1763113206629,0.20612718,97028.0,97022.0,0.03636]
[1763113206630,0.20613588,97024.0,97022.0,0.03636]
[1763113206893,0.20613588,97024.0,97022.0,0.01205]
[1763113208676,0.55620114,97050.0,97040.0,0.02]
[1763113208853,0.24951719,97041.0,97040.0,0.02]
[1763113210099,0.04341874,97041.0,97040.0,0.02]
[1763113210305,0.04341874,97041.0,97023.0,0.02307]
[1763113210306,0.20612745,97028.0,97023.0,0.02307]
[1763113210535,0.20612745,97028.0,97023.0,0.00307]
[1763113210778,0.04341874,97041.0,97023.0,0.00307]
[1763113210948,0.04341874,97036.0,97031.0,0.20611964]
[1763113211154,0.04341874,97036.0,97030.0,0.20612165]
[1763113211398,0.04341874,97036.0,97023.0,0.00307]
[1763113211600,0.04341874,97040.0,97037.0,0.20610633]
[1763113211810,0.04341874,97049.0,97037.0,0.01503]
[1763113212044,0.0002,97050.0,97040.0,0.02]
[1763113212242,0.20609444,97043.0,97040.0,0.02]
[1763113212579,0.0002,97050.0,97049.0,0.22111146]
[1763113212909,0.0002,97050.0,97049.0,0.20608146]
[1763113214310,0.0002,97050.0,97049.0,0.20808146]
[1763113214541,0.0002,97050.0,97049.0,0.20608146]
[1763113214938,0.0002,97050.0,97049.0,0.20708146]
[1763113216651,0.0002,97050.0,97049.0,0.001]
[1763113216854,0.04361874,97050.0,97049.0,0.001]
[1763113217574,0.04361874,97050.0,97046.0,0.20608671]
[1763113217899,0.0002,97050.0,97046.0,0.20608671]
[1763113218224,0.0002,97050.0,97048.0,0.2060818]
[1763113218403,0.0002,97050.0,97047.0,0.20608385]
[1763113218780,0.0002,97050.0,97048.0,0.20608232]
[1763113220580,0.0002,97050.0,97048.0,0.20708232]
[1763113221194,0.0002,97050.0,97049.0,0.02307]
[1763113223733,0.0002,97050.0,97049.0,0.02407]
[1763113227592,0.0002,97050.0,97049.0,0.23015146]
[1763113228012,0.0002,97050.0,97049.0,0.20708146]
[1763113229603,0.0002,97050.0,97049.0,0.001]
[1763113229815,0.20627934,97050.0,97049.0,0.001]
[1763113230860,0.24969808,97050.0,97049.0,0.001]
[1763113231216,0.57269808,97050.0,97049.0,0.001]
[1763113231614,0.20609845,97041.0,97040.0,0.02]
[1763113231809,0.20611654,97033.0,97029.0,0.20612185]
[1763113232015,0.206114,97034.0,97030.0,0.2061214]
[1763113232453,0.20610005,97041.0,97035.0,0.20611016]
[1763113232601,0.36641874,97048.0,97043.0,0.01654]
[1763113232772,0.30370621,97045.0,97043.0,0.01654]
[1763113233513,0.0002,97050.0,97047.0,0.20608552]
[1763113233854,0.0002,97050.0,97039.0,0.01243]
[1763113233855,0.09761561,97049.0,97039.0,0.01243]
[1763113234049,0.20608736,97047.0,97040.0,0.20609946]
[1763113234250,0.0002,97050.0,97049.0,0.01654]
[1763113235850,0.0002,97050.0,97048.0,0.20608259]
[1763113236265,0.0002,97050.0,97049.0,0.0243]
[1763113238457,0.0002,97050.0,97049.0,0.0253]
[1763113242790,0.0002,97050.0,97049.0,0.0243]
[1763113243207,0.0002,97050.0,97049.0,0.0263]
[1763113245239,1.479e-05,97050.0,97049.0,0.11599737]
[1763113245455,1.479e-05,97050.0,97049.0,0.07515737]
[1763113245673,1.479e-05,97050.0,97049.0,0.002]
[1763113246107,1.479e-05,97050.0,97049.0,0.325]
[1763113246334,0.00489655,97058.0,97054.0,0.2060696]
[1763113246568,0.00503324,97058.0,97057.0,0.52906447]
[1763113248710,0.00503324,97058.0,97057.0,0.53206447]
[1763113249118,0.0002,97090.0,97089.0,0.20599655]
[1763113249322,0.00033666,97090.0,97089.0,0.23496655]
[1763113249529,0.00033666,97090.0,97089.0,0.21842655]
[1763113250176,0.00033666,97090.0,97089.0,0.21714655]
[1763113252338,0.00033666,97090.0,97089.0,0.21914655]
[1763113253123,0.00033666,97090.0,97089.0,0.21714655]
[1763113253334,0.00033666,97090.0,97089.0,0.22014655]